bitfinex/quotes_SOLUSD_20240729
["timestamp","ask_amount","ask_price","bid_price","bid_amount"]
[1722249141131,13.06,192.27,192.2,13.23]
[1722249142442,13.06,192.27,192.21,1.04036516]
[1722249142655,13.06,192.27,192.2,13.23]
[1722249143052,13.06,192.27,192.21,1.04036493]
[1722249143457,13.06,192.27,192.2,13.23]
[1722249144755,13.06,192.27,192.2,0.17]
[1722249144959,13.06,192.26,192.2,1.21042598]
[1722249145364,13.06,192.26,192.2,0.17]
[1722249145542,13.06,192.27,192.2,0.17]
[1722249145742,13.06,192.26,192.2,0.17]
[1722249146468,13.06,192.26,192.2,1.21042663]
[1722249147165,4.1604,192.29,192.2,1.21042663]
[1722249147350,24.1595,192.33,192.2,13.23]
[1722249147666,13.06,192.3,192.23,13.06]
[1722249148244,13.06,192.29,192.22,13.23]
[1722249148448,4.1595,192.33,192.22,13.23]
[1722249148648,13.06,192.3,192.23,14.10025242]
[1722249149367,13.06,192.3,192.24,1.04025257]
[1722249149552,13.06,192.3,192.23,13.06]
[1722249150147,13.06,192.29,192.23,13.06]
[1722249150543,13.06,192.28,192.22,0.17]
[1722249151170,13.06,192.26,192.19,24.40298417]
[1722249151479,13.06,192.25,192.2,0.17]
[1722249152681,4.16,192.31,192.2,0.17]
[1722249152969,13.06,192.26,192.2,0.17]
[1722249153854,4.16,192.31,192.2,0.17]
[1722249154063,13.06,192.27,192.2,13.23]
[1722249154560,13.06,192.28,192.21,13.06]
[1722249155166,13.06,192.27,192.2,13.23]
[1722249155381,13.06,192.28,192.21,13.23]
[1722249155556,13.06,192.28,192.22,0.17]
[1722249156666,13.06,192.29,192.22,13.23]
[1722249158544,13.06,192.28,192.22,0.17]
[1722249159453,13.06,192.27,192.21,1.04025817]
[1722249159653,13.06,192.27,192.2,1.04036604]
[1722249159870,13.06,192.27,192.2,14.10036604]
[1722249160181,13.06,192.27,192.21,1.04042912]
[1722249160358,13.06,192.27,192.2,14.10042417]
[1722249160563,13.06,192.27,192.2,13.06]
[1722249160772,13.06,192.27,192.2,14.10042866]
[1722249161070,13.06,192.27,192.2,13.06]
[1722249161270,13.06,192.27,192.2,14.10042846]
[1722249161777,13.06,192.27,192.21,1.04042823]
[1722249162663,13.06,192.27,192.21,1.04041708]
[1722249163554,13.06,192.27,192.2,14.100422]
[1722249163978,13.06,192.26,192.19,29.8279]
[1722249164299,13.06,192.24,192.2,0.17]
[1722249165492,13.06,192.24,192.2,1.21046526]
[1722249165694,13.06,192.24,192.2,0.17]
[1722249166670,13.06,192.25,192.2,1.21046791]
[1722249167071,13.06,192.25,192.2,0.17]
[1722249168077,13.06,192.25,192.2,1.21046639]
[1722249169672,13.06,192.26,192.2,1.21046639]
[1722249170278,13.06,192.26,192.2,14.27046639]
[1722249170885,13.06,192.26,192.2,0.17]
[1722249171088,13.06,192.28,192.2,58.4]
[1722249171269,13.06,192.29,192.22,13.06]
[1722249171599,13.06,192.29,192.23,0.17]
[1722249172360,4.1595,192.33,192.23,0.17]
[1722249172600,13.06,192.29,192.23,0.17]
[1722249175569,13.06,192.28,192.23,0.17]
[1722249175895,13.06,192.28,192.21,13.06]
[1722249175896,13.06,192.28,192.22,0.17]
[1722249179006,13.06,192.25,192.19,16.5979]
[1722249179171,13.06,192.25,192.2,0.17]
[1722249179365,13.06,192.24,192.2,0.17]
[1722249179564,13.06,192.25,192.2,0.17]
[1722249179793,13.06,192.27,192.2,13.23]
[1722249180597,13.06,192.29,192.22,13.06]
[1722249180777,13.06,192.29,192.23,0.17]
[1722249184485,13.06,192.29,192.23,1.21025057]
[1722249184693,13.06,192.3,192.23,13.23]
[1722249185089,13.06,192.29,192.23,0.17]
[1722249185388,13.06,192.29,192.23,45.17]
[1722249185693,13.06,192.28,192.23,0.17]
[1722249185896,13.06,192.28,192.22,45.17]
[1722249186777,13.06,192.28,192.22,0.17]
[1722249189091,13.06,192.29,192.22,13.23]
[1722249190892,13.06,192.29,192.22,13.23]
[1722249191701,13.06,192.28,192.22,0.17]
[1722249192402,4.1595,192.33,192.22,0.34]
[1722249192586,13.06,192.29,192.22,58.4]
[1722249193303,13.06,192.3,192.23,14.10019529]
[1722249193609,13.06,192.3,192.24,0.17]
[1722249194303,20.359608,192.34,192.24,13.23]
[1722249194482,20.359608,192.34,192.26,13.06]
[1722249194483,13.06,192.33,192.26,13.06]
[1722249194806,0.359608,192.34,192.27,58.4]
[1722249194807,13.419608,192.34,192.27,58.4]
[1722249195009,13.419608,192.34,192.27,58.23]
[1722249195206,13.06,192.33,192.27,45.17]
[1722249195503,13.06,192.3,192.27,0.17]
[1722249195695,13.06,192.28,192.26,0.17]
[1722249195906,13.06,192.27,192.2,42.18732518]
[1722249196090,13.06,192.28,192.21,45.0]
[1722249197303,13.06,192.28,192.22,0.34]
[1722249198598,13.06,192.28,192.22,0.17]
[1722249198798,13.06,192.28,192.22,0.34]
[1722249199106,4.518908,192.34,192.22,0.34]
[1722249199301,13.06,192.29,192.22,13.4]
[1722249199499,13.06,192.31,192.24,13.06]
[1722249199738,13.06,192.31,192.25,0.17]
[1722249199889,13.06,192.31,192.25,0.34]
[1722249200094,13.06,192.32,192.25,58.4]
[1722249202514,13.06,192.3,192.22,13.06]
[1722249202698,13.06,192.29,192.22,13.06]
[1722249203903,13.06,192.29,192.23,45.0]
[1722249204290,0.359608,192.34,192.24,13.23]
[1722249204493,13.06,192.31,192.25,45.17]
[1722249204696,13.06,192.31,192.26,0.17]
[1722249205509,13.06,192.31,192.23,13.06]
[1722249205714,13.06,192.31,192.24,45.34]
[1722249206223,13.06,192.3,192.24,45.34]
[1722249207518,13.06,192.3,192.24,0.17]
[1722249207695,13.06,192.29,192.24,0.17]
[1722249207898,13.06,192.28,192.24,0.17]
[1722249208100,0.359608,192.34,192.2,34.3906]
[1722249208101,13.06,192.27,192.2,34.3906]
[1722249208298,13.06,192.27,192.21,13.4]
[1722249209008,13.06,192.27,192.21,0.34]
[1722249209209,13.06,192.26,192.2,15.0084]
[1722249209604,13.06,192.25,192.2,15.0084]
[1722249210322,13.06,192.27,192.2,28.0684]
[1722249210523,13.06,192.28,192.21,13.06]
[1722249210706,6.932308,192.34,192.22,13.23]
[1722249210707,13.06,192.29,192.22,13.23]
[1722249211718,13.06,192.28,192.22,0.17]
[1722249211920,13.06,192.28,192.22,45.34]
[1722249212420,13.06,192.27,192.22,0.17]
[1722249212626,13.06,192.27,192.2,22.80708228]
[1722249212627,13.06,192.25,192.21,0.17]
[1722249213626,13.06,192.26,192.21,0.17]
[1722249214347,6.932308,192.34,192.21,58.4]
[1722249214348,13.06,192.28,192.21,58.4]
[1722249214553,13.06,192.27,192.21,58.4]
[1722249214720,13.06,192.27,192.21,45.34]
[1722249218848,13.06,192.26,192.21,0.17]
[1722249219224,4.1598,192.32,192.21,0.17]
[1722249219225,13.06,192.27,192.21,45.34]
[1722249220764,13.06,192.25,192.21,0.17]
[1722249220965,13.06,192.24,192.2,15.0084]
[1722249222534,13.06,192.24,192.21,0.17]
[1722249222735,13.06,192.25,192.21,0.17]
[1722249224755,13.06,192.24,192.18,20.85982192]
[1722249224934,13.06,192.24,192.19,0.17]
[1722249227550,13.06,192.24,192.18,45.17]
[1722249228470,13.06,192.22,192.18,45.17]
[1722249229351,13.06,192.23,192.18,45.17]
[1722249229561,13.06,192.24,192.18,45.17]
[1722249229752,13.06,192.24,192.18,0.17]
[1722249230343,13.06,192.23,192.18,0.17]
[1722249230646,13.06,192.23,192.17,53.14014615]
[1722249231056,13.06,192.23,192.18,1.04051137]
[1722249231257,13.06,192.23,192.19,0.17]
[1722249231943,13.06,192.23,192.18,0.17]
[1722249232962,13.06,192.23,192.17,0.17]
[1722249233458,13.06,192.23,192.17,1.2105818]
[1722249234246,15.1699,192.3,192.18,13.06]
[1722249234445,13.06,192.26,192.19,14.2704614]
[1722249235250,15.1699,192.3,192.19,14.2704614]
[1722249235451,13.06,192.26,192.2,1.04046689]
[1722249239251,13.06,192.29,192.22,13.06]
[1722249239454,13.06,192.29,192.23,0.17]
[1722249239652,13.06,192.28,192.23,0.17]
[1722249239853,13.06,192.27,192.2,60.6726]
[1722249240153,13.06,192.27,192.21,14.27033014]
[1722249240355,13.06,192.27,192.21,13.23]
[1722249240959,0.9069868,192.31,192.21,13.23]
[1722249241155,0.9069868,192.31,192.24,13.06]
[1722249241469,13.06,192.3,192.24,13.06]
[1722249242159,5.42566937,192.34,192.24,13.06]
[1722249242346,13.06,192.3,192.23,13.23]
[1722249243158,13.06,192.28,192.23,0.17]
[1722249243370,13.06,192.28,192.22,45.34]
[1722249243674,4.1595,192.33,192.23,1.04020097]
[1722249243675,13.06,192.29,192.23,1.04020097]
[1722249243861,13.06,192.29,192.24,0.17]
[1722249244064,13.06,192.28,192.24,0.17]
[1722249244254,13.06,192.27,192.24,0.17]
[1722249244459,13.06,192.27,192.23,0.17]
[1722249244855,13.06,192.26,192.2,28.7326]
[1722249245058,13.06,192.25,192.2,15.6726]
[1722249245352,13.06,192.24,192.2,15.6726]
[1722249245547,13.06,192.25,192.2,15.6726]
[1722249246272,13.06,192.26,192.2,15.6726]
[1722249249879,13.06,192.25,192.2,15.6726]
[1722249250558,13.06,192.23,192.18,7.79972114]
[1722249250773,13.06,192.23,192.19,1.04052397]
[1722249252261,13.06,192.24,192.17,1.21051209]
[1722249253760,13.06,192.25,192.18,13.06]
[1722249253953,13.06,192.25,192.19,0.17]
[1722249254565,13.06,192.25,192.19,1.21043629]
[1722249257873,10.6843,192.31,192.19,14.27043629]
[1722249258179,13.06,192.26,192.19,14.27043629]
[1722249258378,13.06,192.26,192.2,45.17]
[1722249258558,13.06,192.26,192.21,0.17]
[1722249259167,13.06,192.27,192.21,0.17]
[1722249260155,13.06,192.28,192.21,13.23]
[1722249262059,13.06,192.28,192.22,17.10615652]
[1722249262262,13.06,192.28,192.23,0.17]
[1722249264971,13.06,192.28,192.22,16.0659]
[1722249264972,13.06,192.25,192.22,16.0659]
[1722249265295,13.06,192.24,192.19,7.7984773]
[1722249265467,13.06,192.25,192.19,7.7984773]
[1722249266389,13.06,192.25,192.2,0.34]
[1722249266592,13.06,192.25,192.2,0.17]
[1722249266767,13.06,192.25,192.2,45.17]
[1722249267289,13.06,192.27,192.2,58.23]
[1722249267478,13.06,192.28,192.21,13.23]
[1722249267670,13.06,192.28,192.22,45.17]
[1722249268795,5.42566937,192.34,192.22,45.17]
[1722249269087,13.06,192.29,192.23,0.17]
[1722249269471,13.06,192.28,192.22,45.17]
[1722249269668,13.06,192.28,192.22,0.17]
[1722249270592,13.06,192.27,192.22,0.17]
[1722249270781,4.1597,192.33,192.22,0.17]
[1722249270981,13.06,192.27,192.22,0.17]
[1722249276987,13.06,192.27,192.21,0.17]
[1722249277188,1.26636937,192.34,192.21,0.17]
[1722249277385,13.06,192.27,192.21,0.17]
[1722249277979,13.06,192.27,192.21,1.21033145]
[1722249278979,13.06,192.28,192.21,13.23]
[1722249279183,1.26636937,192.34,192.23,13.06]
[1722249279383,13.06,192.3,192.24,0.17]
[1722249279894,13.06,192.3,192.24,61.43182697]
[1722249280097,13.06,192.3,192.24,60.3916]
[1722249280698,13.06,192.3,192.24,73.4516]
[1722249281207,13.06,192.31,192.24,60.3916]
[1722249281385,13.06,192.3,192.24,60.3916]
[1722249282706,13.06,192.29,192.24,60.3916]
[1722249283091,1.26636937,192.34,192.24,60.3916]
[1722249283399,21.26636937,192.34,192.24,60.3916]
[1722249283614,13.06,192.31,192.24,73.4516]
[1722249285312,13.06,192.3,192.24,60.3916]
[1722249285810,13.06,192.29,192.24,60.3916]
[1722249288410,13.06,192.31,192.24,73.4516]
[1722249289213,1.26636937,192.34,192.25,13.06]
[1722249289214,13.06,192.32,192.25,13.06]
[1722249289524,13.06,192.32,192.26,45.17]
[1722249290086,13.06,192.31,192.26,45.17]
[1722249290286,13.06,192.31,192.26,0.17]
[1722249294437,1.26636937,192.34,192.26,0.34]
[1722249294747,13.06,192.33,192.26,13.4]
[1722249294912,13.06,192.33,192.27,45.0]
[1722249295108,13.06,192.33,192.28,0.17]
[1722249295311,13.06,192.31,192.28,0.17]
[1722249295511,13.06,192.31,192.24,28.1116]
[1722249295735,13.06,192.31,192.25,45.34]
[1722249298144,13.06,192.32,192.25,45.34]
[1722249298315,13.06,192.32,192.25,58.4]
[1722249299944,13.06,192.32,192.25,45.34]
[1722249300151,13.06,192.32,192.25,58.4]
[1722249301011,0.359608,192.34,192.25,0.17]
[1722249301212,13.06,192.3,192.25,0.17]
[1722249301417,13.06,192.3,192.24,15.0516]
[1722249302614,13.06,192.3,192.25,0.17]
[1722249302816,13.06,192.26,192.21,7.79963693]
[1722249303118,15.1666,192.33,192.2,15.0743]
[1722249303119,13.06,192.24,192.2,15.0743]
[1722249303925,52.24,192.3,192.2,15.0743]
[1722249304150,13.06,192.24,192.2,15.0743]
[1722249304315,4.1599,192.31,192.17,13.06]
[1722249304513,13.06,192.24,192.16,20.85975446]
[1722249304717,13.06,192.22,192.16,7.79975446]
[1722249305141,13.06,192.22,192.15,22.91875446]
[1722249305654,13.06,192.23,192.16,13.06]
[1722249305830,13.06,192.23,192.15,35.98624572]
[1722249306034,13.06,192.22,192.16,45.0]
[1722249307046,13.06,192.22,192.17,0.17]
[1722249307548,6.0215,192.29,192.17,0.17]
[1722249307730,13.06,192.24,192.17,13.4]
[1722249307936,13.06,192.23,192.17,0.34]
[1722249308324,20.0,192.28,192.19,13.06]
[1722249308626,15.82,192.32,192.2,13.06]
[1722249308627,13.06,192.27,192.2,13.06]
[1722249308851,13.06,192.27,192.21,0.17]
[1722249310451,13.06,192.25,192.21,0.17]
[1722249312258,4.1599,192.31,192.21,0.17]
[1722249312463,13.06,192.26,192.2,45.17]
[1722249314424,13.06,192.26,192.2,0.17]
[1722249314655,13.06,192.24,192.2,0.17]
[1722249315930,13.06,192.24,192.17,13.23]
[1722249316164,13.06,192.24,192.18,45.17]
[1722249316544,13.06,192.25,192.18,58.23]
[1722249317936,13.06,192.25,192.18,45.17]
[1722249318135,13.06,192.25,192.18,13.23]
[1722249318346,13.06,192.23,192.18,0.17]
[1722249318554,13.06,192.22,192.15,28.179]
[1722249318756,13.06,192.22,192.16,45.0]
[1722249319230,13.06,192.23,192.16,58.06]
[1722249320062,13.06,192.23,192.17,0.17]
[1722249324371,13.06,192.24,192.17,13.23]
[1722249326866,72.95719102,192.3,192.17,13.23]
[1722249327055,13.06,192.24,192.18,13.06]
[1722249327267,13.06,192.25,192.19,0.17]
[1722249327645,13.06,192.26,192.19,13.23]
[1722249329252,13.06,192.26,192.2,1.04047914]
[1722249329447,13.06,192.26,192.21,1.21037098]
[1722249329748,13.06,192.27,192.21,1.21037098]
[1722249329954,13.06,192.27,192.21,0.17]
[1722249330244,13.06,192.26,192.21,0.17]
[1722249333174,13.06,192.26,192.21,1.21037089]
[1722249333889,13.06,192.22,192.16,7.80523619]
[1722249334070,13.06,192.21,192.15,7.80523619]
[1722249334274,13.06,192.21,192.14,20.87189187]
[1722249334482,13.06,192.22,192.15,13.06]
[1722249334985,13.06,192.22,192.13,9.92130266]
[1722249335188,13.06,192.22,192.15,13.06]
[1722249335397,13.06,192.22,192.16,0.17]
[1722249335580,22.8975,192.28,192.16,0.17]
[1722249335581,13.06,192.2,192.16,0.17]
[1722249335893,13.06,192.19,192.12,20.87301368]
[1722249336067,13.06,192.19,192.12,7.81301368]
[1722249336275,13.06,192.18,192.12,7.81301368]
[1722249336485,13.06,192.18,192.11,31.01901368]
[1722249336706,13.06,192.17,192.11,31.01901368]
[1722249336864,13.06,192.17,192.11,23.206]
[1722249337263,4.1619,192.22,192.11,23.206]
[1722249337264,13.06,192.18,192.11,23.206]
[1722249337464,13.06,192.18,192.12,45.0]
[1722249337866,13.06,192.18,192.13,0.17]
[1722249340088,13.06,192.19,192.13,0.17]
[1722249341189,22.8975,192.28,192.15,13.06]
[1722249341393,13.06,192.26,192.19,13.06]
[1722249341601,13.06,192.26,192.16,45.34]
[1722249341602,13.06,192.27,192.2,13.23]
[1722249341777,4.16,192.31,192.2,13.23]
[1722249341778,13.06,192.28,192.2,13.23]
[1722249342292,23.28387196,192.33,192.24,13.06]
[1722249342498,23.28387196,192.33,192.26,13.06]
[1722249342499,13.06,192.33,192.26,13.06]
[1722249342673,13.06,192.33,192.25,1.21009758]
[1722249342674,13.06,192.32,192.27,0.17]
[1722249342883,13.06,192.32,192.26,1.04007151]
[1722249343064,13.06,192.32,192.27,1.21006637]
[1722249343267,13.06,192.33,192.27,1.04006637]
[1722249343469,13.419608,192.34,192.28,0.17]
[1722249343861,13.06,192.33,192.28,45.17]
[1722249344199,13.06,192.32,192.28,0.17]
[1722249347591,0.359608,192.34,192.28,20.79618534]
[1722249347886,0.359608,192.34,192.29,45.0]
[1722249348190,0.359608,192.34,192.3,1.20984701]
[1722249348577,13.419608,192.34,192.3,0.17]
[1722249350492,0.359608,192.34,192.3,0.17]
[1722249350696,0.359608,192.34,192.3,0.34]
[1722249351877,13.06,192.33,192.3,0.17]
[1722249353599,13.06,192.33,192.29,0.17]
[1722249353789,13.06,192.31,192.27,16.4919]
[1722249354190,13.06,192.3,192.27,16.4919]
[1722249354998,13.06,192.31,192.27,16.4919]
[1722249355580,13.06,192.32,192.27,16.4919]
[1722249355878,13.06,192.32,192.28,0.17]
[1722249356499,13.06,192.32,192.27,16.4919]
[1722249356500,13.06,192.31,192.24,28.1051]
[1722249356677,13.06,192.29,192.25,45.34]
[1722249356883,13.06,192.28,192.25,45.17]
[1722249357308,0.359608,192.34,192.26,45.0]
[1722249357475,13.06,192.3,192.27,0.17]
[1722249359784,0.359608,192.34,192.27,0.17]
[1722249359977,13.06,192.31,192.27,0.17]
[1722249360381,13.06,192.32,192.27,0.17]
[1722249360581,13.06,192.33,192.26,58.23]
[1722249360805,0.359608,192.34,192.29,13.06]
[1722249360981,0.359608,192.34,192.3,46.20980755]
[1722249361181,0.359608,192.34,192.3,45.17]
[1722249361378,13.06,192.33,192.26,19.4346]
[1722249361583,13.06,192.33,192.27,0.17]
[1722249361880,13.06,192.33,192.27,45.34]
[1722249362077,0.359608,192.34,192.28,1.03990462]
[1722249362306,0.359608,192.34,192.3,13.06]
[1722249362486,0.359608,192.34,192.31,46.20977119]
[1722249363319,0.359608,192.34,192.33,16.296]
[1722249363481,0.359608,192.34,192.33,75.5656322]
[1722249363682,0.359608,192.34,192.33,61.636]
[1722249363883,0.359608,192.34,192.33,61.466]
[1722249365181,0.359608,192.34,192.33,16.466]
[1722249365404,0.359608,192.34,192.33,61.466]
[1722249365908,0.359608,192.34,192.33,16.466]
[1722249366912,0.359608,192.34,192.33,61.636]
[1722249368416,0.359608,192.34,192.33,0.17]
[1722249369290,0.359608,192.34,192.33,58.4]
[1722249369494,0.359608,192.34,192.33,45.34]
[1722249369920,0.359608,192.34,192.33,0.17]
[1722249371289,0.359608,192.34,192.32,45.34]
[1722249371805,0.359608,192.34,192.33,45.0]
[1722249371997,0.359608,192.34,192.33,0.34]
[1722249372195,0.359608,192.34,192.33,0.17]
[1722249372611,0.359608,192.34,192.32,0.34]
[1722249374383,0.359608,192.34,192.28,16.3827]
[1722249374583,13.06,192.33,192.28,16.3827]
[1722249374806,0.359608,192.34,192.28,16.3827]
[1722249374807,13.419608,192.34,192.28,16.3827]
[1722249375314,0.359608,192.34,192.28,29.4427]
[1722249375887,0.359608,192.34,192.29,45.0]
[1722249376089,0.359608,192.34,192.3,0.17]
[1722249376902,0.359608,192.34,192.3,0.34]
[1722249377107,0.359608,192.34,192.3,13.4]
[1722249377304,0.359608,192.34,192.31,58.06]
[1722249377517,0.359608,192.34,192.32,0.34]
[1722249378093,0.359608,192.34,192.32,13.4]
[1722249378295,0.359608,192.34,192.33,45.0]
[1722249378514,0.359608,192.34,192.33,45.17]
[1722249378725,0.359608,192.34,192.33,0.17]
[1722249381398,0.359608,192.34,192.29,13.06]
[1722249381621,0.359608,192.34,192.28,16.3827]
[1722249381622,0.359608,192.34,192.3,45.34]
[1722249381809,0.359608,192.34,192.3,0.34]
[1722249382199,13.419608,192.34,192.3,0.17]
[1722249382407,13.06,192.33,192.3,0.17]
[1722249383219,13.06,192.33,192.26,13.06]
[1722249383419,13.06,192.32,192.25,13.06]
[1722249384614,13.06,192.32,192.23,17.14012063]
[1722249384615,0.359608,192.34,192.26,1.04001146]
[1722249384819,13.06,192.31,192.24,13.06]
[1722249385020,13.06,192.29,192.23,1.04012511]
[1722249385200,0.359608,192.34,192.2,13.06]
[1722249385201,13.06,192.27,192.2,13.06]
[1722249385522,13.06,192.26,192.2,13.06]
[1722249386023,13.06,192.26,192.19,13.06]
[1722249386521,13.06,192.25,192.18,13.06]
[1722249387414,13.06,192.23,192.14,7.80241969]
[1722249387622,13.06,192.22,192.15,13.06]
[1722249387917,7.24412976,192.29,192.14,13.06]
[1722249388120,7.24412976,192.29,192.15,13.06]
[1722249388121,13.06,192.22,192.15,13.06]
[1722249388297,13.06,192.23,192.16,13.06]
[1722249388493,7.24412976,192.29,192.18,13.06]
[1722249388726,7.24412976,192.29,192.22,13.06]
[1722249388920,19.3971,192.29,192.22,13.06]
[1722249389224,13.06,192.28,192.21,13.06]
[1722249389423,13.06,192.27,192.22,0.17]
[1722249389626,13.06,192.26,192.22,0.17]
[1722249390328,13.06,192.27,192.22,0.17]
[1722249390531,13.06,192.28,192.22,0.17]
[1722249390834,13.06,192.27,192.22,0.17]
[1722249391030,13.06,192.27,192.21,45.17]
[1722249392121,13.06,192.26,192.21,45.17]
[1722249392319,13.06,192.26,192.21,0.17]
[1722249392730,13.06,192.24,192.21,0.17]
[1722249393028,13.06,192.24,192.17,13.06]
[1722249393206,13.06,192.24,192.18,45.34]
[1722249393411,6.3371,192.29,192.2,13.06]
[1722249393602,13.06,192.28,192.21,13.06]
[1722249394605,13.06,192.27,192.2,13.06]
[1722249394811,13.06,192.25,192.19,0.17]
[1722249395605,13.06,192.24,192.17,13.06]
[1722249395918,6.3371,192.29,192.15,13.06]
[1722249395919,13.06,192.23,192.15,13.06]
[1722249396728,13.06,192.22,192.15,13.06]
[1722249397330,13.06,192.2,192.12,16.5865]
[1722249397544,13.06,192.2,192.16,0.17]
[1722249398351,21.9871,192.29,192.12,16.5865]
[1722249398352,13.06,192.19,192.12,29.6465]
[1722249398642,13.06,192.18,192.11,13.06]
[1722249399640,13.06,192.17,192.1,13.06]
[1722249399841,13.06,192.15,192.08,15.5525]
[1722249400249,13.06,192.15,192.08,13.06]
[1722249401243,13.06,192.2,192.03,19.72796509]
[1722249401244,13.06,192.13,192.06,13.06]
[1722249402332,13.06,192.13,192.07,13.06]
[1722249402641,13.06,192.14,192.08,0.17]
[1722249402821,13.06,192.14,192.08,45.17]
[1722249403534,13.06,192.14,192.08,0.17]
[1722249403729,13.06,192.13,192.08,0.17]
[1722249403933,13.06,192.13,192.07,45.17]
[1722249405614,4.1625,192.19,192.07,45.17]
[1722249405615,13.06,192.12,192.07,45.17]
[1722249405819,13.06,192.12,192.07,0.17]
[1722249406018,4.1625,192.19,192.07,0.17]
[1722249406248,13.06,192.14,192.07,13.23]
[1722249407665,13.06,192.13,192.07,0.17]
[1722249407961,13.06,192.11,192.07,0.17]
[1722249408165,13.06,192.1,192.03,29.6715]
[1722249408350,13.06,192.09,192.03,16.6115]
[1722249408548,13.06,192.08,192.03,16.6115]
[1722249408739,13.06,192.08,191.98,16.3477]
[1722249408944,13.06,192.08,192.01,13.06]
[1722249409268,13.06,192.07,192.0,13.06]
[1722249409772,13.06,192.06,191.99,13.06]
[1722249410275,13.06,192.05,191.98,29.4077]
[1722249410458,0.90792463,192.12,192.03,13.06]
[1722249410768,0.90792463,192.12,191.98,16.3477]
[1722249410769,13.06,192.08,192.01,13.06]
[1722249410971,13.06,192.07,192.0,13.06]
[1722249411171,13.06,192.07,192.01,45.17]
[1722249411669,13.06,192.09,192.02,13.06]
[1722249412190,13.06,192.08,192.01,58.23]
[1722249412871,13.06,192.07,192.01,0.17]
[1722249413473,13.06,192.03,191.97,0.203363]
[1722249414476,16.596,192.08,191.97,0.203363]
[1722249414775,13.06,192.07,192.0,13.06]
[1722249414946,13.06,192.06,191.99,13.06]
[1722249415148,16.596,192.08,192.0,0.17]
[1722249415447,16.596,192.08,191.99,0.17]
[1722249415660,16.596,192.08,191.98,0.17]
[1722249416762,6.4551,192.07,191.97,0.203363]
[1722249418355,6.4551,192.07,191.98,0.17]
[1722249418563,6.4551,192.07,191.97,8.03343514]
[1722249418875,20.0,192.06,191.97,0.203363]
[1722249419064,20.0,192.06,191.98,0.17]